Cogmind - Beta 14 @@@ ROGUE MODE // 2024.08.07 @ 10:23:33 Player: RD-BNK(r) Result: Destroyed by as-42588 with Assembled Heavy Rifle Performance ------------- Evolutions (0) 0 Regions Visited (2) 400 Robots Destroyed (34) 170 Value Destroyed (709) 709 Prototype IDs (0) 0 Alien Tech Used (0) 0 Bonus (0) 0 TOTAL SCORE: 1279 Bonus ------- None Cogmind --------- Core Integrity 0/250 Matter 172/300 Energy 100/100 System Corruption 5% Temperature Cool (0) Movement Core (1400) Ox27 Location -10/Mines Parts ------- > --- POWER (1) -------- (None) > --- PROPULSION (2) --- (None) > --- UTILITY (2) ------ Huge Storage Unit Seismic Detector > --- WEAPON (2) ------- Grenade Launcher > --- INVENTORY (25) --- Light Ion Engine Light Ion Engine Light Ion Engine Light Treads Light Treads Light Treads Light Treads Medium Storage Unit Medium Matter Pod (55) Structural Scanner Sensor Array Signal Interpreter Light Armor Plating Light Armor Plating Hacking Suite Medium Laser Assault Rifle Assault Rifle Assault Rifle Assault Rifle Assault Rifle Assault Rifle Light Assault Rifle Datajack Mining Claw Peak State ------------ > --- POWER ------------ Ion Engine > --- PROPULSION ------- Wheel Compact Wheel > --- UTILITY ---------- Huge Storage Unit Sensor Array > --- WEAPON ----------- Particle Gun Light Assault Rifle > --- INVENTORY -------- Light Ion Engine Light Ion Engine Light Ion Engine Light Treads Light Treads Light Treads Aluminum Leg Medium Storage Unit Medium Matter Pod Medium Laser Grenade Launcher Mining Claw [Rating: 9] Favorites ----------- Power Ion Engine Engine Ion Engine Propulsion Light Treads Treads Light Treads Leg Aluminum Leg Wheel Wheel Utility Huge Storage Unit Device Seismic Detector Storage Huge Storage Unit Weapon Assault Rifle Energy Gun Particle Gun Ballistic Gun Assault Rifle Launcher Grenade Launcher Slashing Weapon Mining Claw Build | -11 -10 -10 ------- Run | Yrd Mat Min Slots Evolved . | . . . Power . | . . . Propulsion . | . . . Utility . | . . . Weapon . | . . . Parts Attached 24 | 3 21 . Power 2 | . 2 . Engine 2 | . 2 . Core . | . . . Reactor . | . . . Propulsion 4 | 2 2 . Treads 2 | 2 . . Leg . | . . . Wheel 2 | . 2 . Hover . | . . . Flight . | . . . Utility 5 | 1 4 . Device 4 | 1 3 . Storage 1 | . 1 . Processor . | . . . Hackware . | . . . Protection . | . . . Artifact . | . . . Weapon 13 | . 13 . Energy Gun 1 | . 1 . Energy Cannon . | . . . Ballistic Gun 7 | . 7 . Ballistic Cannon . | . . . Launcher 2 | . 2 . Special Weapon . | . . . Impact Weapon . | . . . Slashing Weapon 3 | . 3 . Piercing Weapon . | . . . Special Melee Weapon . | . . . Unidentified Prototypes . | . . . Parts Lost 10 | . 6 4 Power 2 | . 1 1 Propulsion 3 | . 1 2 Utility 1 | . 1 . Weapon 4 | . 3 1 Highest Loss Streak 4 | . 3 4 To Critical Strikes . | . . . Average Slot Usage (%) 98 | . 98 100 Engine 13 | . 13 14 Treads 11 | . 11 . Wheel 16 | . 16 28 Device 12 | . 12 14 Storage 14 | . 14 14 Ballistic Gun 26 | . 26 . Slashing Weapon 1 | . 1 . Peak Build Rating 9 | 7 9 9 Average Rating 7 | 6 7 7 On Entrance 7 | 6 7 9 Naked Turns . | . . . Heaviest Build 92 | 13 92 . Greatest Support 40 | 40 40 . Greatest Overweight (x) 8 | . 8 . Average Overweight (x) 2 | . 2 . Largest Inventory Capacity 25 | 8 25 25 Average Capacity 19 | 8 19 25 Most Carried 25 | 6 25 25 Average Carried 13 | 6 13 25 Final Capacity 25 | 8 25 25 Final Carried 25 | 6 25 25 Class Distribution -------------------- 100% | Mutant Dominant Class ---------------- Mutant | -10/Materials Mutant | -10/Mines Resources | -11 -10 -10 ----------- Run | Yrd Mat Min Matter Collected 943 | 278 665 . Remotely . | . . . Salvage Created 1046 | 134 868 44 Parts 69 | 3 59 7 Haulers Intercepted 2 | . 2 . Recyclers Shooed 4 | 1 3 . Parts Field Recycled . | . . . Retrieved Matter . | . . . Parts Self-Destructed . | . . . Prevented . | . . . Kills | -11 -10 -10 ------- Run | Yrd Mat Min Combat Hostiles Destroyed 36 | . 20 16 Guns 20 | . 20 . AOE 16 | . . 16 Classes Destroyed 10 | 2 7 1 Worker 1 | . 1 . Builder 1 | . 1 . Tunneler 2 | 2 . . Hauler 2 | . 2 . Recycler 1 | 1 . . Operator 2 | . 2 . Watcher 2 | . 2 . Swarmer 9 | . 6 3 Grunt 14 | . 14 . Assembled 13 | . . 13 Best Kill Streak 17 | 1 3 17 Combat Bots Only 17 | . 3 17 Max Kills in Single Turn 10 | 1 1 10 Gunslinging . | . . . Exploded 10 | . . 10 Melee . | . . . Uniques/NPCs Destroyed . | . . . Combat | -11 -10 -10 -------- Run | Yrd Mat Min Hostile Shots Fired 131 | . 109 22 Missed 33 | . 28 5 Damage Taken 1250 | . 877 373 Core 257 | . 124 133 Absorbed by Shields . | . . . Regen/Repaired (Parts) 121 | . 121 . Core Remaining (%) 100 | 100 . . Volleys Fired 109 | 8 96 5 Largest 2 | 2 2 2 Hottest 85 | 40 85 60 Shots Fired 203 | 16 179 8 Gun 195 | 16 179 . Cannon . | . . . Launcher 8 | . . 8 Special . | . . . Kinetic 189 | 16 173 . Thermal 6 | . 6 . Explosive 8 | . . 8 Electromagnetic . | . . . Robot Hit Streak 15 | 9 15 4 Robot Miss Streak 5 | 1 5 1 Penetration Max . | . . . Secondary Targets 1 | . 1 . Max Gunslinging Chain 1 | . 1 . Shots Hit Robots 126 | 13 109 4 Core Hits 85 | 4 47 34 Critical Kills . | . . . Critical Parts Destroyed . | . . . Critical Strikes 1 | . 1 . Burn 1 | . 1 . Melee Attacks 5 | . 5 . Impact . | . . . Slashing 5 | . 5 . Piercing . | . . . Sneak Attacks . | . . . Combat Hostiles . | . . . Follow-up Attacks . | . . . Damage Inflicted 2514 | 164 1380 970 Guns 1539 | 164 1375 . Cannons . | . . . Explosions 970 | . . 970 Melee . | . . . Ramming 5 | . 5 . Kinetic 1481 | 164 1317 . Thermal 58 | . 58 . Explosive 970 | . . 970 Electromagnetic . | . . . Impact . | . . . Slashing . | . . . Piercing . | . . . Highest Corruption 5 | . . 5 Average Corruption 5 | . . 5 Corruption Purged . | . . . Corruption Blocked . | . . . Overload Shots . | . . . Overflow Damage 35 | . . 35 Projectiles . | . . . Explosions 35 | . . 35 Melee . | . . . Knockbacks . | . . . Impact . | . . . Kinetic . | . . . Secondary . | . . . Self-Inflicted Damage 93 | . . 93 Shots 3 | . . 3 Rammed 2 | . 2 . Targets Rammed 2 | . 2 . Kicked . | . . . Crushed . | . . . Highest Temperature 95 | . 95 . Average Temperature 33 | . 33 . Received Heat Transfer 390 | . 390 . Siege Activations . | . . . Robots Corrupted . | . . . Combat Hostiles . | . . . Parts Fried . | . . . Impact Corruptions . | . . . Robots Melted . | . . . Combat Hostiles . | . . . Parts Melted 2 | . 2 . Heat Transferred 222 | . 222 . Parts Sabotaged . | . . . Parts Stolen . | . . . Parts Stripped . | . . . Power Chain Reactions . | . . . Alert | -11 -10 -10 ------- Run | Yrd Mat Min Peak Influence 255 | 15 255 157 Initial 58 | . 9 58 Average 107 | 6 111 143 Maximum Alert Level 1 | . 1 . Low Security (%) 95 | 100 95 100 Level 1 4 | . 4 . Level 2 . | . . . Level 3 . | . . . Level 4 . | . . . Level 5 . | . . . High Security . | . . . Max Security . | . . . Squads Dispatched 4 | . 4 . Investigation 2 | . 2 . Extermination . | . . . Reinforcement 2 | . 2 . Assault . | . . . Garrison . | . . . Intercept . | . . . Searches Triggered . | . . . Construction Impeded . | . . . Haulers Reinforced . | . . . Active Scanning Responses . | . . . Cargo Convoy Interrupts . | . . . Stealth | -11 -10 -10 --------- Run | Yrd Mat Min Distress Signals 5 | . 5 . Communications Jammed . | . . . Distress Signals . | . . . Times Spotted 62 | . 42 20 Peak Tracking Total 20 | . 5 20 Tactical Retreats 3 | . 3 . Traps | -11 -10 -10 ------- Run | Yrd Mat Min Traps Triggered 1 | . 1 . Indirectly . | . . . Trap Hack Attempts . | . . . Triggered . | . . . Disarmed . | . . . Reprogrammed . | . . . Reused . | . . . Traps Extracted . | . . . Installed . | . . . Triggered . | . . . Machines | -11 -10 -10 ---------- Run | Yrd Mat Min Machines Disabled 1 | . . 1 Max in Single Turn 1 | . . 1 Machines Repaired . | . . . Machines Dismantled . | . . . Machines Sabotaged . | . . . Overloaded Fab Kills . | . . . Hacking | -11 -10 -10 --------- Run | Yrd Mat Min Machines Accessed 4 | . 4 . Terminals 3 | . 3 . Fabricators . | . . . Repair Stations 1 | . 1 . Recycling Units . | . . . Scanalyzers . | . . . Garrison Access . | . . . Total Hacks 8 | . 8 . Successful 5 | . 5 . Failed 3 | . 3 . Catastrophic . | . . . Database Lockouts . | . . . Manual 3 | . 3 . Terminals 6 | . 6 . Fabricators . | . . . Repair Stations 2 | . 2 . Recycling Units . | . . . Scanalyzers . | . . . Garrison Access . | . . . Terminal Hacks 2 | . 2 . Terminal Index 1 | . 1 . Hauler Manifests 1 | . 1 . Fabricator Hacks . | . . . Repair Station Hacks 2 | . 2 . Scan Component 1 | . 1 . Repair 1 | . 1 . Recycling Unit Hacks . | . . . Scanalyzer . | . . . Garrison Access Hacks . | . . . Unauthorized Hacks 1 | . 1 . Terminals 1 | . 1 . Operators 1 | . 1 . Fabricators . | . . . Repair Stations . | . . . Recycling Units . | . . . Scanalyzers . | . . . Garrison Access . | . . . Data Cores Recovered . | . . . Used . | . . . Hacking Detections 4 | . 4 . Full Trace Events 1 | . 1 . Feedback Events . | . . . Feedback Blocked . | . . . Robot Schematics Acquired . | . . . Robots Built . | . . . Authchips . | . . . Time . | . . . Total Robot Build Rating . | . . . Part Schematics Acquired . | . . . Parts Built . | . . . Authchips . | . . . Time . | . . . Total Part Build Rating . | . . . Parts Repaired 1 | . 1 . Time 13 | . 13 . Parts Recycled . | . . . Recycled Matter . | . . . Retrieved Matter . | . . . Retrieved Components . | . . . Parts Scanalyzed . | . . . Part Schematics Acquired . | . . . Parts Damaged . | . . . Bothacking | -11 -10 -10 ------------ Run | Yrd Mat Min Used RIF Installer . | . . . Robots Hacked . | . . . Non-combat . | . . . Combat . | . . . Robot Hacks Applied . | . . . Relay Couplers Released . | . . . Fabnet Peak Effective % . | . . . Robots Rewired . | . . . Allies Hacked . | . . . Hacks Repelled . | . . . Allies | -11 -10 -10 -------- Run | Yrd Mat Min Total Allies . | . . . Largest Group . | . . . Highest-Rated Group . | . . . Highest-Rated Ally . | . . . Total Orders . | . . . Ally Attacks . | . . . Total Damage . | . . . Kills . | . . . Allies Corrupted . | . . . Allies Melted . | . . . Intel | -11 -10 -10 ------- Run | Yrd Mat Min Robot Analysis Total . | . . . Derelict Logs Recovered . | . . . Drone Launches . | . . . Drone Recoveries . | . . . Exploration | -11 -10 -10 ------------- Run | Yrd Mat Min Turns Passed 2018 | 84 1921 13 Spaces Moved 898 | 24 874 . Core . | . . . Treads 252 | 24 228 . Legs . | . . . Wheels 646 | . 646 . Hover . | . . . Flight . | . . . Fastest Speed 135 | 160 135 . Average Speed 153 | 160 152 . Slowest Speed 480 | 160 480 . Overloaded Moves . | . . . Propulsion Burnouts . | . . . Robots Hopped . | . . . Cave-ins Triggered . | . . . Exploration Rate (%) 35 | 3 96 8 Regions Visited 2 Branch Regions 1 Pre-discovered Areas . | . . . Known Exits Taken . | . . . Unknown Exits Taken 2 | 1 1 . Scrap Searched . | . . . Spaces Dug 18 | . 4 14 Terrain Destroyed 56 | . 4 52 Melee 4 | . 4 . Projectile . | . . . AOE 52 | . . 52 Terrain Rammed . | . . . Walls Destroyed . | . . . Machines Disabled . | . . . Actions | -11 -10 -10 --------- Run | Yrd Mat Min Total 1321 | 52 1264 5 Wait 255 | 18 237 . Move 896 | 23 873 . Hop . | . . . Pick Up 25 | . 25 . Fast Attach 5 | 1 4 . Attach 4 | . 4 . Detach . | . . . Swap 15 | 2 13 . Drop 5 | . 5 . Fire 109 | 8 96 5 Melee 5 | . 5 . Ram . | . . . Kick . | . . . Crush 2 | . 2 . Escape Stasis . | . . . Rewire . | . . . Trap . | . . . Miscellaneous . | . . . Route ------- -11/Scrapyard -10/Materials (discovered 5 exits: [*Mat x3] / [*Min x2]) -10/Mines History --------- Turn | Location | Event 4 | -11/Scrapyard | Discovered new exit (range 3) 85 | -11/Scrapyard | Entered Materials 334 | -10/Materials | Build established: Mutant 534 | -10/Materials | Discovered new exit (range 5) 647 | -10/Materials | Discovered new exit (range 15) 663 | -10/Materials | Discovered new exit (range 5) 1075 | -10/Materials | Lost 3 parts (1p2w) 1154 | -10/Materials | Discovered new exit (range 16) 1812 | -10/Materials | Repaired Lgt. Treads 1887 | -10/Materials | Discovered new exit (range 5) 2006 | -10/Materials | Entered Mines 2007 | -10/Mines | Assembled infested the area 2009 | -10/Mines | Core integrity fell below 50% 2018 | -10/Mines | Core integrity fell below 20% 2019 | -10/Mines | Destroyed by as-42588 with Assembled Heavy Rifle Last Messages --------------- 02012_ as-29397 destroyed. 02012_ as-45133 destroyed. 02012_ as-69147 destroyed. 02012_ as-77746 destroyed. 02012_ as-68308 destroyed. 02012_ as-54156 destroyed. 02013_ Wheel destroyed. 02013_ Com. Wheel destroyed. 02013_ System corrupted by crushing effect (+1). 02013_ System corrupted by crushing effect (+4). 02013_ Knocked back. 02014_ Grenade Launcher destroyed. 02015_ Destroyed Asb. Hover Unit. 02015_ Pulverizer disabled. 02016_ as-81075 destroyed. 02017_ The unstable cave ceiling collapses. 02017_ as-83764 destroyed. 02017_ Ion Engine destroyed. 02017_ Destroyed Ion Engine. 02018_ The unstable cave ceiling collapses. Map ----- +----------------------------------------------------+ | ?????????????????????????????? | | ?????????????????????????????? | | ?????????????????????????????? | | ?????????????????????????????? | | ?????????????????????????????? | | ?????????????????????????????? | | ?????????????????????????????? | | ?????????????????????????????? | | ?????????????????????????????? | | ?????????????????????????????? | | ?????????????????????????????? | | ?????????????????????????????? | | ?????????????????????????????? | | ?????????????????????????????? | | ???????????#?????????????????? | | ?????????? #?????????????????? | | ???????? #?????????????????? | | ??# ??? #?????????????????? | | ??# """ #?????????????????? | | ??# """ #?????????????????? | | ??# =##????????????????? | | ??# """= [% ##???????????????? | | ?## """ [ = #???????????????? | | ?# """ [ #???????????????? | | ?# #???????????????? | | ?# @ #???????????????? | | ?# a ????????? | | ?# # ## #????????? | | ?# a ??? #?????????? | | ?# ##### ??????????? | | ?# % ##?????? ##?????????? | | ? a ##?????????#??????????? | | # %#?????????????????????? | | # #?????????????????????? | | ## %% ?????????????????????? | | # % ?????????????????????? | | ## a ?????????????????????? | | ?## ?????????????????????? | | ??# a< ?????????????????????? | | ??# ## ????????????????????? | | ??# ??##????????????????????? | | ??? ????????????????????????? | | ?????????????????????????????? | | ?????????????????????????????? | | ?????????????????????????????? | | ?????????????????????????????? | | ?????????????????????????????? | | ?????????????????????????????? | | ?????????????????????????????? | | ?????????????????????????????? | +----------------------------------------------------+ Best States ------------- Heat Dissipation 25 Energy Generation 10 Energy Capacity 250 Matter Stores 300 Matter Capacity 300 Sight Range 16 Robot Scan Range 14 Terrain Scan Density 10 Evasion (%) 40 Recoil Reduction 2 Item Schematics ----------------- None Robot Schematics ------------------ None Fabricated ------------ Nothing Alien Tech Used ----------------- None Achievements -------------- None Challenges ------------ None Game ------ Seed MultinovaTerrainDoublenader Manual? 0 Play Time 00:18:10 Cumulative 147.0 hours Start 2024.08.07 @ 08:52:52 End 2024.08.07 @ 10:23:33 Sessions 5 Manual Loads 0 Difficulty Rogue Special Mode None Game No. 149 Rogue 149 Adventurer 0 Explorer 0 Win Type - Total 6 Types 3/0/2/1/0/0/0/0/0 Lore% 52 Gallery% 54 Achievement% 54 Wizard Run 0 Options --------- Layout 0 ASCII 0 Keyboard 0 Movement Mouse Keybinds 0 Fullscreen 2 Font 18/X11Bold Map View 76x50 Zoom Use 0% Tactical HUD 1 Map Filters NONE Filters NONE Steam 1 RUN: 0d32de30-0929-4f2e-bd23-134dcf367544